fUSD/lending_fUSD_20241230
["ID","MTS","AMOUNT","RATE_DAILY","PERIOD"]
[347188372,1735554711932,-500.0,0.00015342,2]
[347188373,1735554711942,-500.0,0.00015342,2]
[347188374,1735554711951,-500.0,0.00015342,2]
[347188375,1735554711961,-971.2,0.00015342,2]
[347188376,1735554711971,-852.09,0.00015342,2]
[347188377,1735554711980,-500.0,0.00015342,2]
[347188378,1735554711989,-1602.37,0.00015342,2]
[347188379,1735554712001,-500.0,0.00015342,2]
[347188380,1735554712012,-526.98,0.00015342,2]
[347188381,1735554712022,-1168.41,0.00015342,2]
[347188382,1735554712032,-718.04,0.00015342,2]
[347188383,1735554712042,-520.46,0.00015342,2]
[347188384,1735554712052,-500.0,0.00015342,2]
[347188385,1735554712061,-500.0,0.00015342,2]
[347188386,1735554712071,-500.0,0.00015342,2]
[347188387,1735554712080,-500.0,0.00015342,2]
[347188388,1735554712090,-500.97,0.00015342,2]
[347188389,1735554712099,-1610.98,0.00015342,2]
[347188390,1735554712112,-522.32,0.00015342,2]
[347188391,1735554712121,-500.0,0.00015342,2]
[347188392,1735554712131,-829.69,0.00015342,2]
[347188393,1735554712141,-500.0,0.00015342,2]
[347188394,1735554712151,-500.0,0.00015342,2]
[347188395,1735554712160,-592.14,0.00015342,2]
[347188396,1735554712170,-743.74,0.00015342,2]
[347188397,1735554712179,-822.9,0.00015342,2]
[347188398,1735554712188,-150.66474338,0.00015342,2]
[347188399,1735554712199,-500.0,0.00015342,2]
[347188400,1735554712209,-500.0,0.00015342,2]
[347188401,1735554712218,-961.28,0.00015342,2]
[347188402,1735554712227,-500.0,0.00015342,2]
[347188403,1735554712237,-1300.51,0.00015342,2]
[347188404,1735554712250,-1306.13,0.00015342,2]
[347188405,1735554712260,-1211.16,0.00015342,2]
[347188406,1735554712270,-644.72,0.00015342,2]
[347188407,1735554712279,-507.58,0.00015342,2]
[347188408,1735554712288,-500.0,0.00015342,2]
[347188409,1735554712298,-1716.07,0.00015342,2]
[347188410,1735554712307,-414.2,0.00015342,2]
[347188411,1735554712316,-685.33,0.00015342,2]
[347188412,1735554712326,-500.0,0.00015342,2]
[347188413,1735554712335,-500.0,0.00015342,2]
[347188414,1735554712345,-1140.3,0.00015342,2]
[347188415,1735554712355,-1582.78,0.00015342,2]
[347188416,1735554712364,-500.0,0.00015342,2]
[347188417,1735554712374,-1499.25,0.00015342,2]
[347188418,1735554712384,-1527.24,0.00015342,2]
[347188419,1735554712393,-500.0,0.00015342,2]
[347188420,1735554712402,-1626.34,0.00015342,2]
[347188421,1735554712411,-500.0,0.00015342,2]
[347188422,1735554712422,-799.47,0.00015342,2]
[347188423,1735554712432,-775.88,0.00015342,2]
[347188424,1735554712441,-500.0,0.00015342,2]
[347188425,1735554712451,-500.0,0.00015342,2]
[347188426,1735554712460,-936.82,0.00015342,2]
[347188427,1735554712470,-789.36,0.00015342,2]
[347188428,1735554712479,-1745.68,0.00015342,2]
[347188429,1735554712491,-747.79,0.00015342,2]
[347188430,1735554712501,-510.62197604,0.00015342,2]
[347188431,1735554712510,-500.0,0.00015342,2]
[347188432,1735554712519,-608.35,0.00015342,2]
[347188433,1735554712529,-500.0,0.00015342,2]
[347188434,1735554712539,-500.0,0.00015342,2]
[347188435,1735554712548,-500.0,0.00015342,2]
[347188436,1735554712559,-539.77,0.00015342,2]
[347188437,1735554712569,-500.0,0.00015342,2]
[347188438,1735554712579,-745.85,0.00015342,2]
[347188439,1735554712589,-782.89,0.00015342,2]
[347188440,1735554712600,-881.97,0.00015342,2]
[347188441,1735554712610,-570.91,0.00015342,2]
[347188442,1735554712619,-500.0,0.00015342,2]
[347188443,1735554712629,-500.0,0.00015342,2]
[347188444,1735554712638,-822.0,0.00015342,2]
[347188445,1735554712648,-1033.39,0.00015342,2]
[347188446,1735554712658,-854.9,0.00015342,2]
[347188447,1735554712669,-703.8,0.00015342,2]
[347188448,1735554712678,-500.0,0.00015342,2]
[347188449,1735554712688,-843.64,0.00015342,2]
[347188450,1735554712698,-500.0,0.00015342,2]
[347188451,1735554712707,-470.30687154,0.00015342,2]
[347188452,1735554712717,-1660.3,0.00015342,2]
[347188453,1735554712727,-1063.44,0.00015342,2]
[347188454,1735554712736,-543.78,0.00015342,2]
[347188455,1735554712748,-702.65,0.00015342,2]
[347188456,1735554712757,-500.0,0.00015342,2]
[347188457,1735554712767,-652.4,0.00015342,2]
[347188458,1735554712776,-1187.1,0.00015342,2]
[347188459,1735554712786,-505.09,0.00015342,2]
[347188460,1735554712795,-829.36,0.00015342,2]
[347188461,1735554712805,-575.86,0.00015342,2]
[347188462,1735554712814,-500.0,0.00015342,2]
[347188463,1735554712824,-500.0,0.00015342,2]
[347188464,1735554712835,-624.19,0.00015342,2]
[347188465,1735554712845,-906.93,0.00015342,2]
[347188466,1735554712854,-1156.63,0.00015342,2]
[347188467,1735554712864,-713.62,0.00015342,2]
[347188468,1735554712873,-614.22,0.00015342,2]
[347188469,1735554712883,-537.93,0.00015342,2]
[347188470,1735554712892,-1282.53,0.00015342,2]
[347188471,1735554712902,-1876.89,0.00015342,2]
[347188472,1735554712912,-789.0,0.00015342,2]
[347188473,1735554712921,-946.81,0.00015342,2]
[347188474,1735554712931,-1388.83,0.00015342,2]
[347188475,1735554712940,-1179.27,0.00015342,2]
[347188476,1735554712949,-1973.96,0.00015342,2]
[347188477,1735554712959,-1045.87,0.00015342,2]
[347188478,1735554712968,-1459.4,0.00015342,2]
[347188479,1735554712978,-740.94,0.00015342,2]
[347188480,1735554712987,-1041.91,0.00015342,2]
[347188481,1735554712998,-994.29,0.00015342,2]
[347188482,1735554713008,-645.11,0.00015342,2]
[347188483,1735554713018,-500.0,0.00015342,2]
[347188484,1735554713028,-1167.76,0.00015342,2]
[347188485,1735554713038,-528.4,0.00015342,2]
[347188486,1735554713047,-500.0,0.00015342,2]
[347188487,1735554713057,-500.0,0.00015342,2]
[347188488,1735554713067,-1770.26,0.00015342,2]
[347188489,1735554713076,-1922.14,0.00015342,2]
[347188490,1735554713086,-500.0,0.00015342,2]
[347188491,1735554713095,-2056.26,0.00015342,2]
[347188492,1735554713105,-500.0,0.00015342,2]
[347188493,1735554713118,-2616.4,0.00015342,2]
[347188494,1735554713128,-500.0,0.00015342,2]
[347188495,1735554713137,-830.19,0.00015342,2]
[347188496,1735554713147,-563.78,0.00015342,2]
[347188497,1735554713158,-933.75,0.00015342,2]
[347188498,1735554713167,-500.0,0.00015342,2]
[347188499,1735554713177,-1862.34,0.00015342,2]
[347188500,1735554713186,-500.0,0.00015342,2]
[347188501,1735554713196,-4223.89,0.00015342,2]
[347188502,1735554713205,-500.0,0.00015342,2]
[347188503,1735554713214,-500.0,0.00015342,2]
[347188504,1735554713223,-1896.09,0.00015342,2]
[347188505,1735554713294,-1233.39,0.00015342,2]
[347188506,1735554713304,-500.0,0.00015342,2]
[347188507,1735554713313,-1415.62,0.00015342,2]
[347188508,1735554713323,-500.0,0.00015342,2]
[347188509,1735554713332,-2442.05,0.00015342,2]
[347188510,1735554713342,-3114.35,0.00015342,2]
[347188511,1735554713352,-848.86,0.00015342,2]
[347188512,1735554713362,-836.45,0.00015342,2]
[347188513,1735554713371,-1119.39,0.00015342,2]
[347188514,1735554713381,-500.0,0.00015342,2]
[347188515,1735554713390,-922.12,0.00015342,2]
[347188516,1735554713400,-1004.42,0.00015342,2]
[347188517,1735554713409,-500.0,0.00015342,2]
[347188518,1735554713419,-1421.43,0.00015342,2]
[347188519,1735554713428,-642.54,0.00015342,2]
[347188520,1735554713438,-1590.22,0.00015342,2]
[347188521,1735554713447,-5206.57,0.00015342,2]
[347188522,1735554713457,-1027.59,0.00015342,2]
[347188523,1735554713467,-984.07,0.00015342,2]
[347188524,1735554713476,-1269.5,0.00015342,2]
[347188525,1735554713485,-747.2,0.00015342,2]
[347188526,1735554713495,-500.0,0.00015342,2]
[347188527,1735554713504,-500.0,0.00015342,2]
[347188528,1735554713514,-895.8,0.00015342,2]
[347188529,1735554713523,-1186.15,0.00015342,2]
[347188530,1735554713532,-1748.97,0.00015342,2]
[347188531,1735554713545,-2837.22,0.00015342,2]
[347188532,1735554713555,-2119.17,0.00015342,2]
[347188533,1735554713564,-1401.43,0.00015342,2]
[347188534,1735554713574,-500.0,0.00015342,2]
[347188535,1735554713583,-804.5,0.00015342,2]
[347188536,1735554713592,-2511.83,0.00015342,2]
[347188537,1735554713602,-895.97,0.00015342,2]
[347188538,1735554713611,-519.41,0.00015342,2]
[347188539,1735554713620,-2223.57,0.00015342,2]
[347188540,1735554713629,-3557.82,0.00015342,2]
[347188541,1735554713639,-500.0,0.00015342,2]
[347188542,1735554713648,-500.0,0.00015342,2]
[347188543,1735554713658,-1235.09,0.00015342,2]
[347188544,1735554713667,-500.0,0.00015342,2]
[347188545,1735554713677,-961.58,0.00015342,2]
[347188546,1735554713686,-500.0,0.00015342,2]
[347188547,1735554713695,-789.39,0.00015342,2]
[347188548,1735554713705,-1220.94,0.00015342,2]
[347188549,1735554713714,-700.0,0.00015342,2]
[347188550,1735554713723,-1334.12,0.00015342,2]
[347188551,1735554713733,-15520.84,0.00015342,2]
[347188552,1735554713743,-1799.96,0.00015342,2]
[347188553,1735554713753,-948.01,0.00015342,2]
[347188554,1735554713763,-1420.5,0.00015342,2]
[347188555,1735554713772,-3118.65,0.00015342,2]
[347188556,1735554713782,-655.39,0.00015342,2]
[347188557,1735554713792,-500.0,0.00015342,2]
[347188558,1735554713801,-1481.38,0.00015342,2]
[347188559,1735554713811,-500.0,0.00015342,2]
[347188560,1735554713821,-695.05,0.00015342,2]
[347188561,1735554713831,-1130.97,0.00015342,2]
[347188562,1735554713841,-500.0,0.00015342,2]
[347188563,1735554713851,-964.77,0.00015342,2]
[347188564,1735554713861,-2743.83,0.00015342,2]
[347188565,1735554713871,-995.84,0.00015342,2]
[347188566,1735554713880,-500.0,0.00015342,2]
[347188567,1735554713890,-1294.06,0.00015342,2]
[347188568,1735554713900,-256.600673,0.00015342,2]
[347188569,1735554713910,-1717.36,0.00015342,2]
[347188570,1735554713919,-504.19,0.00015342,2]
[347188571,1735554713929,-1429.45,0.00015342,2]
[347188572,1735554713938,-500.0,0.00015342,2]
[347188573,1735554713948,-500.0,0.00015342,2]
[347188574,1735554713957,-151.522666,0.00015342,2]
[347188575,1735554713967,-1021.02,0.00015342,2]
[347188576,1735554713977,-500.0,0.00015342,2]
[347188577,1735554713987,-3809.03,0.00015342,2]
[347188578,1735554713997,-2701.33,0.00015342,2]
[347188579,1735554714007,-500.0,0.00015342,2]
[347188580,1735554714017,-2078.6,0.00015342,2]
[347188581,1735554714026,-777.08,0.00015342,2]
[347188582,1735554714036,-529.45,0.00015342,2]
[347188583,1735554714045,-3469.31,0.00015342,2]
[347188584,1735554714055,-500.0,0.00015342,2]
[347188585,1735554714065,-788.38,0.00015342,2]
[347188586,1735554714075,-999.37,0.00015342,2]
[347188587,1735554714084,-3390.93,0.00015342,2]
[347188588,1735554714094,-500.0,0.00015342,2]
[347188589,1735554714104,-838.45,0.00015342,2]
[347188590,1735554714118,-500.0,0.00015342,2]
[347188591,1735554714127,-565.11,0.00015342,2]
[347188592,1735554714137,-3116.51,0.00015342,2]
[347188593,1735554714147,-500.0,0.00015342,2]
[347188594,1735554714158,-2085.66,0.00015342,2]
[347188595,1735554714167,-824.29,0.00015342,2]
[347188596,1735554714177,-1158.25,0.00015342,2]
[347188597,1735554714188,-500.0,0.00015342,2]
[347188598,1735554714197,-555.14,0.00015342,2]
[347188599,1735554714207,-1664.6,0.00015342,2]
[347188600,1735554714217,-826.92,0.00015342,2]
[347188601,1735554714227,-7960.63,0.00015342,2]
[347188602,1735554714237,-3550.08,0.00015342,2]
[347188603,1735554714247,-4913.88,0.00015342,2]
[347188604,1735554714257,-1277.48,0.00015342,2]
[347188605,1735554714267,-4923.98,0.00015342,2]
[347188606,1735554714277,-1076.9,0.00015342,2]
[347188607,1735554714287,-500.0,0.00015342,2]
[347188608,1735554714297,-1945.05,0.00015342,2]
[347188609,1735554714306,-2958.04,0.00015342,2]
[347188610,1735554714316,-1526.0,0.00015342,2]
[347188611,1735554714326,-867.36,0.00015342,2]
[347188612,1735554714336,-1785.33,0.00015342,2]
[347188613,1735554714346,-873.64,0.00015342,2]
[347188614,1735554714355,-902.97,0.00015342,2]
[347188615,1735554714365,-1948.24,0.00015342,2]
[347188616,1735554714374,-500.0,0.00015342,2]
[347188617,1735554714384,-838.43,0.00015342,2]
[347188618,1735554714393,-3634.37,0.00015342,2]
[347188619,1735554714403,-1262.2,0.00015342,2]
[347188620,1735554714412,-4406.04,0.00015342,2]
[347188621,1735554714423,-1619.44,0.00015342,2]
[347188622,1735554714432,-2536.67,0.00015342,2]
[347188623,1735554714442,-154.085996,0.00015342,2]
[347188624,1735554714452,-3415.04,0.00015342,2]
[347188625,1735554714462,-500.0,0.00015342,2]
[347188626,1735554714472,-1621.07,0.00015342,2]
[347188627,1735554714482,-503.73252829,0.00015342,2]
[347188628,1735554714491,-24680.01,0.00015342,2]
[347188629,1735554714505,-191.848991,0.00015342,2]
[347188630,1735554714515,-1329.52,0.00015342,2]
[347188631,1735554714525,-21241.19,0.00015342,2]
[347188632,1735554714535,-8051.77,0.00015342,2]
[347188633,1735554714545,-3369.5,0.00015342,2]
[347188634,1735554714555,-818.37,0.00015342,2]
[347188635,1735554714564,-900.18,0.00015342,2]
[347188636,1735554714574,-2005.67,0.00015342,2]
[347188637,1735554714583,-2962.92,0.00015342,2]
[347188638,1735554714594,-922.91,0.00015342,2]
[347188639,1735554714603,-7841.0,0.00015342,2]
[347188640,1735554714613,-500.0,0.00015342,2]
[347188641,1735554714623,-1725.02,0.00015342,2]
[347188642,1735554714632,-4683.43,0.00015342,2]
[347188643,1735554714641,-1737.99,0.00015342,2]
[347188644,1735554714651,-851.58,0.00015342,2]
[347188645,1735554714661,-1371.79,0.00015342,2]
[347188646,1735554714670,-908.23,0.00015342,2]
[347188647,1735554714680,-1034.9,0.00015342,2]
[347188648,1735554714689,-2087.39,0.00015342,2]
[347188649,1735554714700,-500.0,0.00015342,2]
[347188650,1735554714710,-1354.54,0.00015342,2]
[347188651,1735554714720,-5139.4,0.00015342,2]
[347188652,1735554714729,-500.0,0.00015342,2]
[347188653,1735554714739,-1765.84,0.00015342,2]
[347188654,1735554714749,-3255.81,0.00015342,2]
[347188655,1735554714760,-500.0,0.00015342,2]
[347188656,1735554714770,-500.0,0.00015342,2]
[347188657,1735554714780,-1725.59,0.00015342,2]
[347188658,1735554714790,-3980.02,0.00015342,2]
[347188659,1735554714800,-500.0,0.00015342,2]
[347188660,1735554714809,-1895.75,0.00015342,2]
[347188661,1735554714819,-2612.63,0.00015342,2]
[347188662,1735554714828,-879.99,0.00015342,2]
[347188663,1735554714839,-659.37,0.00015342,2]
[347188664,1735554714849,-500.0,0.00015342,2]
[347188665,1735554714859,-1879.64,0.00015342,2]
[347188666,1735554714870,-594.06,0.00015342,2]
[347188667,1735554714880,-3869.8,0.00015342,2]
[347188668,1735554714890,-7283.26,0.00015342,2]
[347188669,1735554714900,-2083.66,0.00015342,2]
[347188670,1735554714910,-538.35,0.00015342,2]
[347188671,1735554714921,-1245.34,0.00015342,2]
[347188672,1735554714930,-1874.96,0.00015342,2]
[347188673,1735554714939,-1437.99,0.00015342,2]
[347188674,1735554714949,-4047.83,0.00015342,2]
[347188675,1735554714960,-2434.76,0.00015342,2]
[347188676,1735554714970,-150.748465,0.00015342,2]
[347188677,1735554714979,-3415.24,0.00015342,2]
[347188678,1735554714989,-500.0,0.00015342,2]
[347188679,1735554715001,-2358.95,0.00015342,2]
[347188680,1735554715011,-2910.83,0.00015342,2]
[347188681,1735554715021,-1380.68,0.00015342,2]
[347188682,1735554715031,-500.0,0.00015342,2]
[347188683,1735554715042,-3932.53,0.00015342,2]
[347188684,1735554715052,-2451.98,0.00015342,2]
[347188685,1735554715062,-1630.29,0.00015342,2]
[347188686,1735554715072,-500.0,0.00015342,2]
[347188687,1735554715082,-2806.59,0.00015342,2]
[347188688,1735554715092,-887.39,0.00015342,2]
[347188689,1735554715103,-1907.3,0.00015342,2]
[347188690,1735554715117,-5043.23,0.00015342,2]
[347188691,1735554715127,-2710.39,0.00015342,2]
[347188692,1735554715137,-151.0,0.00015342,2]
[347188693,1735554715146,-1803.4,0.00015342,2]
[347188694,1735554715158,-578.16,0.00015342,2]
[347188695,1735554715168,-697.826531,0.00015342,2]
[347188696,1735554715177,-500.0,0.00015342,2]
[347188697,1735554715189,-500.0,0.00015342,2]
[347188698,1735554715199,-15410.93,0.00015342,2]
[347188699,1735554715209,-778.96,0.00015342,2]
[347188700,1735554715219,-3063.52,0.00015342,2]
[347188701,1735554715232,-772.53,0.00015342,2]
[347188702,1735554715242,-1315.44,0.00015342,2]
[347188703,1735554715253,-500.0,0.00015342,2]
[347188704,1735554715264,-10853.58,0.00015342,2]
[347188705,1735554715275,-1018.75,0.00015342,2]
[347188706,1735554715285,-1539.27,0.00015342,2]
[347188707,1735554715295,-2023.47,0.00015342,2]
[347188708,1735554715304,-1421.06,0.00015342,2]
[347188709,1735554715314,-4226.36,0.00015342,2]
[347188710,1735554715323,-1661.62,0.00015342,2]
[347188711,1735554715333,-1154.95,0.00015342,2]
[347188712,1735554715343,-500.0,0.00015342,2]
[347188713,1735554715353,-19002.09,0.00015342,2]
[347188714,1735554715363,-1190.535245,0.00015342,2]
[347188715,1735554715373,-13799.11,0.00015342,2]
[347188716,1735554715383,-1060.349808,0.00015342,2]
[347188717,1735554715392,-2447.22,0.00015342,2]
[347188718,1735554715402,-1853.19,0.00015342,2]
[347188719,1735554715412,-500.0,0.00015342,2]
[347188720,1735554715422,-4504.39,0.00015342,2]
[347188721,1735554715432,-579.82,0.00015342,2]
[347188722,1735554715442,-500.0,0.00015342,2]
[347188723,1735554715452,-1368.0,0.00015342,2]
[347188724,1735554715462,-1190.535245,0.00015342,2]
[347188725,1735554715472,-7288.85,0.00015342,2]
[347188726,1735554715481,-574.32,0.00015342,2]
[347188727,1735554715491,-3768.96,0.00015342,2]
[347188728,1735554715504,-502.48704178,0.00015342,2]
[347188729,1735554715514,-1860.22,0.00015342,2]
[347188730,1735554715524,-1624.8,0.00015342,2]
[347188731,1735554715534,-525.69640641,0.00015342,2]
[347188732,1735554715544,-3241.01,0.00015342,2]
[347188733,1735554715555,-4417.28,0.00015342,2]
[347188734,1735554715565,-1658.66,0.00015342,2]
[347188735,1735554715575,-1376.93,0.00015342,2]
[347188736,1735554715584,-921.331711,0.00015342,2]
[347188737,1735554715594,-565.05,0.00015342,2]
[347188738,1735554715604,-511.39,0.00015342,2]
[347188739,1735554715614,-5391.31,0.00015342,2]
[347188740,1735554715624,-12335.02,0.00015342,2]
[347188741,1735554715634,-2462.72,0.00015342,2]
[347188742,1735554715643,-4206.8,0.00015342,2]
[347188743,1735554715653,-624.54,0.00015342,2]
[347188744,1735554715663,-1492.07,0.00015342,2]
[347188745,1735554715672,-1329.67,0.00015342,2]
[347188746,1735554715682,-500.0,0.00015342,2]
[347188747,1735554715692,-276.635621,0.00015342,2]
[347188748,1735554715702,-3747.13,0.00015342,2]
[347188749,1735554715711,-500.0,0.00015342,2]
[347188750,1735554715722,-2416.75,0.00015342,2]
[347188751,1735554715732,-500.0,0.00015342,2]
[347188752,1735554715742,-276.635621,0.00015342,2]
[347188753,1735554715753,-1532.57,0.00015342,2]
[347188754,1735554715763,-648.47346649,0.00015342,2]
[347188755,1735554715773,-1109.85,0.00015342,2]
[347188756,1735554715783,-667.51,0.00015342,2]
[347188757,1735554715793,-1884.81,0.00015342,2]
[347188758,1735554715802,-2393.86,0.00015342,2]
[347188759,1735554715812,-500.0,0.00015342,2]
[347188760,1735554715822,-768.73,0.00015342,2]
[347188761,1735554715833,-500.0,0.00015342,2]
[347188762,1735554715987,-500.0,0.00015342,2]
[347188763,1735554715997,-2701.5,0.00015342,2]
[347188764,1735554716007,-1145.33,0.00015342,2]
[347188765,1735554716016,-500.0,0.00015342,2]
[347188766,1735554716026,-500.0,0.00015342,2]
[347188767,1735554716035,-1842.45,0.00015342,2]
[347188768,1735554716045,-1022.94,0.00015342,2]
[347188769,1735554716054,-151.0,0.00015342,2]
[347188770,1735554716064,-2458.37,0.00015342,2]
[347188771,1735554716074,-2768.22,0.00015342,2]
[347188772,1735554716083,-500.0,0.00015342,2]
[347188773,1735554716093,-2222.11,0.00015342,2]
[347188774,1735554716103,-1309.59,0.00015342,2]
[347188775,1735554716117,-602.240036,0.00015342,2]
[347188776,1735554716126,-500.0,0.00015342,2]
[347188777,1735554716136,-1184.42,0.00015342,2]
[347188778,1735554716146,-1975.49,0.00015342,2]
[347188779,1735554716158,-151.0,0.00015342,2]
[347188780,1735554716167,-2054.1,0.00015342,2]
[347188781,1735554716177,-1526.92,0.00015342,2]
[347188782,1735554716188,-338.84135104,0.00015342,2]
[347188783,1735554716198,-607.46,0.00015342,2]
[347188784,1735554716207,-500.0,0.00015342,2]
[347188785,1735554716217,-2498.78,0.00015342,2]
[347188786,1735554716226,-500.0,0.00015342,2]
[347188787,1735554716236,-633.07,0.00015342,2]
[347188788,1735554716246,-1514.9,0.00015342,2]
[347188789,1735554716256,-502.24,0.00015342,2]
[347188790,1735554716265,-798.38,0.00015342,2]
[347188791,1735554716274,-1500.0,0.0001536,2]
[347188792,1735554716284,-500.0,0.0001536,2]
[347188793,1735554716294,-150.0,0.00015366,2]
[347188794,1735554716304,-150.0,0.00015368,2]
[347188795,1735554716313,-150.0,0.00015369,2]
[347188796,1735554716323,-202.0,0.0001538,2]
[347188797,1735554716332,-993.50148963,0.00015394,2]
[347188798,1735554716342,-661.26134378,0.00015394,2]
[347188799,1735554716351,-500.0,0.00015394,2]
[347188800,1735554716361,-150.0,0.00015394,2]
[347188801,1735554716371,-720.69598389,0.00015394,2]
[347188802,1735554716380,-500.0,0.00015394,2]
[347188803,1735554716389,-365.0,0.000154,2]
[347188804,1735554716398,-1000.0,0.000154,2]
[347188805,1735554716408,-690.0,0.000154,2]
[347188806,1735554716417,-152.0,0.00015444,3]
[347188807,1735554716427,-150.123019,0.00015448,2]
[347188808,1735554716436,-150.123019,0.00015448,2]
[347188809,1735554716445,-150.123019,0.00015448,2]
[347188810,1735554716455,-150.123019,0.00015448,2]
[347188811,1735554716464,-150.123019,0.00015448,2]
[347188812,1735554716475,-150.123019,0.00015448,2]
[347188813,1735554716484,-150.123019,0.00015448,2]
[347188814,1735554716494,-150.123019,0.00015448,2]
[347188815,1735554716503,-150.123019,0.00015448,2]
[347188816,1735554716514,-150.123019,0.00015448,2]
[347188817,1735554716523,-150.123019,0.00015448,2]
[347188818,1735554716533,-150.123019,0.00015448,2]
[347188819,1735554716542,-150.123019,0.00015448,2]
[347188820,1735554716551,-150.123019,0.00015448,2]
[347188821,1735554716561,-150.123019,0.00015448,2]
[347188822,1735554716570,-150.123019,0.00015448,2]
[347188823,1735554716579,-150.123019,0.00015448,2]
[347188824,1735554716589,-150.123019,0.00015448,2]
[347188825,1735554716598,-150.123019,0.00015448,2]
[347188826,1735554716608,-150.123019,0.00015448,2]
[347188827,1735554716617,-150.123019,0.00015448,2]
[347188828,1735554716627,-150.123019,0.00015448,2]
[347188829,1735554716636,-456.0,0.0001545,2]
[347188830,1735554716645,-314.0,0.0001545,2]
[347188831,1735554716655,-204.0,0.0001545,2]
[347188832,1735554716664,-500.0,0.00015497,2]
[347188833,1735554716674,-44809.01563564,0.000155,6]
[347188834,1735554716683,-202.0,0.0001552,2]
[347188835,1735554716693,-1500.0,0.00015522,2]
[347188836,1735554716703,-1000.15929877,0.00015522,2]
[347188837,1735554716712,-1053.44,0.00015603,2]
[347188838,1735554716722,-151.0,0.00015616,2]
[347188839,1735554716731,-273.371652,0.00015616,2]
[347188840,1735554716741,-273.371652,0.00015616,2]
[347188841,1735554716751,-1587.087385,0.00015616,2]
[347188842,1735554716760,-151.0,0.00015616,2]
[347188843,1735554716769,-151.0,0.00015616,2]
[347188844,1735554716778,-151.0,0.00015616,2]
[347188845,1735554716788,-592.45,0.00015616,2]
[347188846,1735554716798,-592.45,0.00015616,2]
[347188847,1735554716807,-500.0,0.00015616,2]
[347188848,1735554716817,-1214.252229,0.00015616,2]
[347188849,1735554716827,-500.0,0.00015616,2]
[347188850,1735554716838,-1214.252229,0.00015616,2]
[347188851,1735554716847,-500.0,0.00015616,2]
[347188852,1735554716857,-500.0,0.00015616,2]
[347188853,1735554716866,-627.92,0.00015616,2]
[347188854,1735554716876,-500.0,0.00015616,2]
[347188855,1735554716885,-743.64,0.00015616,2]
[347188856,1735554716894,-545.124391,0.00015616,2]
[347188857,1735554716904,-151.0,0.00015616,2]
[347188858,1735554716913,-500.0,0.00015616,2]
[347188859,1735554716922,-549.69,0.00015616,2]
[347188860,1735554716931,-545.124391,0.00015616,2]
[347188861,1735554716941,-151.0,0.00015616,2]
[347188862,1735554716950,-500.0,0.00015616,2]
[347188863,1735554716959,-500.0,0.00015616,2]
[347188864,1735554716968,-1100.37,0.00015616,2]
[347188865,1735554716978,-648.92,0.00015616,2]
[347188866,1735554716987,-151.0,0.00015616,2]
[347188867,1735554716998,-151.0,0.00015616,2]
[347188868,1735554717008,-500.0,0.00015616,2]
[347188869,1735554717017,-516.03,0.00015616,2]
[347188870,1735554717027,-521.87,0.00015616,2]
[347188871,1735554717036,-500.0,0.00015616,2]